[Event "10th Cherry Blossom Classic 2023"]
[Site "Dulles"]
[Date "2023.05.27"]
[Round "3.6"]
[White "Khanin, Semen"]
[Black "Sinha, Sahil"]
[Result "1/2-1/2"]
[ECO "E49"]
[WhiteElo "2566"]
[BlackElo "2317"]
[Annotator "TA"]
[PlyCount "91"]
[EventDate "2023.05.24"]
[EventType "swiss"]
[EventCountry "USA"]
[SourceTitle "playchess.com"]
[Source "ChessBase"]
[SourceQuality "1"]
[TimeControl "5400+30"]

{[%evp 31,91,26,62,73,62,63,77,70,57,67,68,49,86,87,91,40,45,0,0,0,0,0,0,0,0,0,0,0,0,0,0,0,0,0,0,0,0,0,0,0,0,0,0,0,0,0,0,-72,0,0,0,0,0,0,0,0,0,0,0,0,0,0]} 1. d4 {[%emt 0:00:26]} Nf6 {[%emt 0:00:17]} 2. c4 {[%emt 0:00:07]} e6 {[%emt 0:00:06]} 3. Nc3 {[%emt 0:00:04]} Bb4 {[%emt 0:00:04]} 4. e3 {[%emt 0:00:06]} O-O {[%emt 0:00:51]} 5. Bd3 {[%emt 0:00:06]} d5 {[%emt 0:00:35]} 6. a3 {[%emt 0:00:05]} Bxc3+ {[%emt 0:02:37]} 7. bxc3 {[%emt 0:00:11]} c5 {[%emt 0:01:05]} 8. cxd5 {[%emt 0:00:06]} exd5 {[%emt 0:02:17]} 9. Ne2 {[%emt 0:00:06]} b6 {[%emt 0:00:34]} 10. O-O {[%emt 0:00:07]} Ba6 {[%emt 0:00:36]} 11. f3 {[%emt 0:00:08]} Bb5 {[%emt 1:26:58]} 12. Bc4 Bxc4 {[%emt 0:00:00]} 13. Qd2 {[%emt 1:35:28]} Bd3 14. Qxd3 {[%emt 0:00:00]} Re8 {[%emt 0:00:00]} 15. Ng3 {[%emt 0:00:00]} Nc6 {[%emt 0:00:00] 15...cxd4 is a critical line.} 16. Bb2 {[%emt 0:00:00]} Rc8 {[%emt 0:00:00]} 17. e4 $1 {[%emt 0:00:00] E49: Nimzo-Indian: Rubinstein: 5 Bd3 d5 6 a3 Bxc3+ 7 bxc3.} dxe4 {[%emt 0:00:00]} 18. fxe4 {[%emt 0:00:00]} Ne5 {[%emt 0:00:00]} 19. Qe2 {[%emt 0:00:00] White is better.} cxd4 {[%emt 0:00:00]} 20. cxd4 {[%emt 0:00:00]} Nc4 {[%emt 0:00:00]} 21. Rae1 $1 {[%emt 0:00:00]} Rc7 {[%emt 0:00:00]} 22. Ba1 {[%emt 0:00:00]} b5 {[%emt 0:00:00]} (22... Nxa3 $2 23. d5 Nxd5 24. Qb2 $18) 23. d5 {[%emt 0:00:00]} (23. h3 $16) 23... Nd7 $1 $14 {[%emt 0:06:00] [#]} 24. Bxg7 $146 {[%emt 0:00:00][%mdl 64] [#] Decoy} ({Predecessor:} 24. Nf5 Nde5 25. Qh5 g6 26. Nh6+ Kg7 27. Qh3 f6 28. Ng4 Nxg4 29. Qxg4 Rf7 30. Qg3 Qb6+ 31. Rf2 a5 32. Kh1 Qd6 33. Qh4 Ne5 34. Ref1 h5 {½-½ Stathopoulos,I (2278)-Sandalakis,A (2412) GRE-chT 49th 2022 (7.2)}) 24... Kxg7 {[%emt 0:00:00]} 25. Qg4+ {[%emt 0:00:00][%mdl 64] Deflection} Kh8 {[%emt 0:00:00] ...Rg8 is the strong threat.} 26. Rxf7 {[%emt 0:00:00][%csl Gf7][%cal Rg4g7]} Rg8 {[%emt 0:00:00] Inhibits Qg7+.} 27. Rxh7+ {[%emt 0:00:00][%mdl 64] Decoy} Kxh7 {[%emt 0:00:00]} 28. Qh5+ {[%emt 0:00:00]} Kg7 {[%emt 0:00:00]} 29. Nf5+ {[%emt 0:00:00]} Kf8 $1 {[%emt 0:00:00]} 30. Qh6+ {[%emt 0:00:00]} Ke8 {[%emt 0:00:00]} 31. Qe6+ {[%emt 0:00:00]} Kf8 {[%emt 0:00:00]} 32. Qh6+ {[%emt 0:00:00]} Ke8 {[%emt 0:00:00]} 33. Qe6+ {[%emt 0:00:00]} Kf8 {[%emt 0:00:00]} 34. d6 {[%emt 0:00:00]} Qg5 {[%emt 0:00:00][%csl Gg8][%cal Rg5g2]} 35. g3 {[%emt 0:00:00]} Rc5 {[%emt 0:00:00] White must now prevent ...Rg6.} (35... Rb7 $2 36. Rf1 Rg6 37. Nh6+ (37. Qd5 Rb6 $11) 37... Nf6 38. Qc8+ Kg7 39. Nf5+ (39. Qxb7+ $2 Kxh6 40. Qxa7 Nxd6 $19) 39... Kh7 40. Qxb7+ Kh8 41. Qxb5 $18 (41. Qxa7 Qd2 $11)) 36. Rf1 {[%emt 0:00:00] Threatening mate with Ne7+.} (36. Qxd7 $2 Ne5 37. Qe7+ Qxe7 38. dxe7+ Ke8 $19) 36... Nd2 $1 {[%emt 0:00:00]} 37. Rf4 {[%emt 0:06:42][%mdl 64] Ne7+ would kill now. Deflection} Nf3+ $1 {[%emt 0:00:00]} (37... Qxf4 $2 38. Qe7#) (37... Rc1+ $2 38. Kg2 $18) 38. Kf2 {[%emt 0:04:50] White wants to mate with Ne7+. Chess con chili.} (38. Rxf3 $5 Rc1+ $8 39. Kg2 Rc2+ 40. Kg1 Rc1+ 41. Kg2 Rc2+ 42. Kg1 Rc1+ $11) 38... Rc2+ {[%emt 0:00:00]} (38... Nxh2 $2 39. Qxd7 Rg6 40. Nd4+ (40. Nh4+ Rf6 $15) 40... Kg8 41. Qf7+ Kh8 42. Rh4+ $18) 39. Ke3 {[%emt 0:00:10] [#]} (39. Kf1 $1 $11 {remains equal.} Rc1+ 40. Kf2) 39... Nxh2 {[%emt 0:00:00]} ({But not} 39... Rc3+ 40. Ke2 Ng1+ 41. Ke1 Nf3+ 42. Ke2 $11) (39... Nfe5 $1 $17 {[%cal Re5g4] ...Ng4+ would be deadly.} 40. Nh6+ (40. Ne7+ $2 Qxf4+ 41. gxf4 Ng4+ 42. Kd4 Rc4+ $17) 40... Qxf4+ 41. Kxf4 (41. gxf4 Nc4+ 42. Kf3 Nd2+ 43. Ke3 Nf1+ {[%mdl 64] Discovered Attack} 44. Kd4 Rc4+ $17) 41... Rg7) 40. Nh6+ $11 {[%emt 0:01:08] The position is equal.} ({Avoid the trap} 40. Ne7+ $2 Qxf4+ 41. Kxf4 Rg4+ 42. Qxg4 Rf2+ 43. Kg5 Nxg4 $19) 40... Kg7 {[%emt 0:00:00]} 41. Qxg8+ {[%emt 0:00:32]} Kxh6 {[%emt 0:00:00]} 42. Qh8+ {[%emt 0:00:06]} Kg6 {[%emt 0:00:00]} 43. Qg8+ {[%emt 0:00:46]} Kh6 {[%emt 0:00:00]} 44. Qh8+ {[%emt 0:00:38]} Kg6 {[%emt 0:00:00]} 45. Qe8+ {[%emt 0:00:20]} Kh6 $1 {[%emt 0:00:00] ( -> ...Qc5+)} 46. Qh8+ {[%emt 0:00:34] A brilliant game!   Weighted Error Value: White=0.05 (flawless) /Black=0.07 (flawless)} 1/2-1/2

[Event "10th Cherry Blossom Classic 2023"]
[Site "Dulles"]
[Date "2023.05.27"]
[Round "3.7"]
[White "Kantor, Gergely"]
[Black "Paul, Justin"]
[Result "1-0"]
[ECO "D43"]
[WhiteElo "2535"]
[BlackElo "2314"]
[Annotator "TA"]
[PlyCount "59"]
[EventDate "2023.05.24"]
[EventType "swiss"]
[EventCountry "USA"]
[SourceTitle "playchess.com"]
[Source "ChessBase"]
[SourceQuality "1"]
[TimeControl "5400+30"]

{[%evp 11,59,33,31,0,31,42,60,54,56,59,52,54,56,54,55,56,63,64,62,71,69,33,34,39,70,78,100,120,157,76,116,85,83,83,156,166,209,178,189,167,538,538,510,527,525,516,515,539,516,457]} 1. d4 {[%emt 0:01:12]} Nf6 {[%emt 0:00:20]} 2. c4 {[%emt 0:00:02]} e6 {[%emt 0:00:15]} 3. Nf3 {[%emt 0:00:48]} d5 {[%emt 0:00:23]} 4. Nc3 {[%emt 0:00:06]} c6 {[%emt 0:00:17]} 5. Bg5 {[%emt 0:00:08]} h6 {[%emt 0:00:58]} 6. Bxf6 {[%emt 0:00:05]} Qxf6 {[%emt 0:00:09]} 7. a3 {[%emt 0:00:03] D43: Semi-Slav: 5 Bg5 h6.} g6 {[%emt 0:02:26]} 8. e4 {[%emt 0:02:32]} dxe4 {[%emt 0:00:50]} 9. Nxe4 {[%emt 0:00:21] [#] White is slightly better.} Qg7 $146 {[%emt 0:00:48]} ({Predecessor:} 9... Qd8 10. c5 Nd7 11. Bc4 Nf6 12. Nxf6+ Qxf6 13. Qe2 b6 14. Qe4 Bd7 15. Ne5 bxc5 16. dxc5 {1-0 Cramling,P (2509)-Gaponenko,I (2469) ROM-chT (Women) 2010 (5)}) 10. c5 {[%emt 0:10:24]} Nd7 {[%emt 0:02:10]} 11. Bc4 {[%emt 0:00:46]} Be7 {[%emt 0:04:11]} 12. O-O {[%emt 0:02:41]} O-O {[%emt 0:00:08]} 13. Re1 {[%emt 0:04:25]} Rd8 {[%emt 0:05:27][%cal Od7c5]} 14. Qc2 {[%emt 0:03:28]} b6 {[%emt 0:02:03][%cal Rb6c5]} 15. b4 {[%emt 0:06:32]} a5 {[%emt 0:09:18]} 16. Rab1 {[%emt 0:08:14]} (16. Bb3 $5 {[%cal Rc5b6]}) 16... axb4 {[%emt 0:18:18]} 17. axb4 {[%emt 0:00:29]} bxc5 {[%emt 0:11:31]} 18. bxc5 {[%emt 0:02:48]} Kf8 {[%emt 0:03:18]} 19. h3 {[%emt 0:10:46]} Nf6 {[%emt 0:03:42] [#]} 20. Red1 {[%emt 0:08:51]} (20. Bd3 $142 $1) 20... Nd7 {[%emt 0:12:24] Repels Ne5} 21. Kh2 {[%emt 0:07:23]} Kg8 {[%emt 0:02:03]} 22. Re1 {[%emt 0:04:47]} Bf8 {[%emt 0:06:45] [#]} (22... Qf8 $142) 23. Qc3 $1 $16 {[%emt 0:01:36] White is much more active.} Ba6 {[%emt 0:05:42]} 24. Bxa6 {[%emt 0:01:05]} Rxa6 {[%emt 0:00:01]} 25. Rb7 {[%emt 0:01:01]} Nf6 $2 {[%emt 0:01:04]} (25... Be7 {is more resistant.} 26. Rc7 Raa8) 26. Ne5 $18 {[%emt 0:02:27] White is clearly winning.} Nd5 {[%emt 0:02:22]} 27. Qc4 {[%emt 0:01:48]} Ra3 {[%emt 0:01:13]} 28. Rxf7 {[%emt 0:03:08]} Qxf7 {[%emt 0:00:02]} 29. Nxf7 {[%emt 0:00:05]} Kxf7 {[%emt 0:00:09]} 30. Rb1 {[%emt 0:00:05] Weighted Error Value: White=0.09 (flawless) /Black=0.31} 1-0

[Event "10th Cherry Blossom Classic 2023"]
[Site "Dulles"]
[Date "2023.05.27"]
[Round "3.8"]
[White "Marjanovic, Annamaria"]
[Black "Druska, Juraj"]
[Result "0-1"]
[ECO "A62"]
[WhiteElo "2273"]
[BlackElo "2496"]
[Annotator "TA"]
[PlyCount "94"]
[EventDate "2023.05.24"]
[EventType "swiss"]
[EventCountry "USA"]
[SourceTitle "playchess.com"]
[Source "ChessBase"]
[SourceQuality "1"]
[TimeControl "5400+30"]

{[%evp 19,94,20,17,22,37,0,0,0,0,-17,8,0,13,12,16,20,10,0,53,68,69,21,19,11,12,0,0,0,0,0,19,21,9,0,5,0,56,0,29,0,0,0,0,0,48,46,31,13,75,72,69,18,21,0,32,37,37,12,35,0,31,26,114,0,0,0,54,-590,-566,-823,-817,-855,-853,-6479,-6475,-1641,-655]} 1. d4 {[%emt 0:00:02]} Nf6 {[%emt 1:31:00]} 2. c4 {[%emt 0:00:11]} e6 {[%emt 0:00:00]} 3. g3 {[%emt 0:00:06]} c5 {[%emt 0:00:00]} 4. d5 {[%emt 0:00:15]} exd5 {[%emt 0:00:00]} 5. cxd5 {[%emt 0:00:11]} d6 {[%emt 0:00:00]} 6. Nc3 {[%emt 0:01:07]} g6 {[%emt 0:00:00]} 7. Bg2 {[%emt 0:00:04]} Bg7 {[%emt 0:00:00]} 8. Nf3 {[%emt 0:00:06]} O-O {[%emt 0:00:00]} 9. O-O {[%emt 0:00:05]} Re8 {[%emt 0:00:00]} 10. Bf4 {[%emt 0:00:24]} Na6 {[%emt 0:00:00] 10...h6 gains popularity.} 11. Re1 {[%emt 0:12:45] A62: Modern Benoni: Fianchetto Variation without early ...Nbd7.} Bg4 {[%emt 0:00:00]} 12. Qd2 {[%emt 0:03:26]} Ne4 {[%emt 0:00:00]} 13. Nxe4 {[%emt 0:03:39] The position is equal.} Rxe4 {[%emt 0:00:00] [#]} 14. Rad1 $146 {[%emt 0:07:37]} ({Predecessor:} 14. h3 Bxf3 15. Bxf3 Rd4 16. Qc1 Qd7 17. Kg2 Nc7 18. Bd2 Re8 19. Rb1 b5 20. a3 Nxd5 {0-1 Liang,J (1953)-Gormally,D (2499) Hastings Masters op 90th 2014 (7)}) 14... Qb6 {[%emt 0:00:00]} (14... Rc8 {with more complications.} 15. Ng5 Rb4 16. h3 Rxb2 17. Qc1 Bd7) 15. h3 {[%emt 0:14:17]} (15. Ng5 {feels hotter.} Rb4 16. Qe3 Rd8 17. Qe7) 15... Bxf3 {[%emt 0:00:00]} 16. Bxf3 {[%emt 0:05:08]} Rb4 {[%emt 0:00:00]} 17. b3 {[%emt 0:01:14]} Nc7 {[%emt 0:00:00]} 18. Qc2 {[%emt 0:09:40]} Rd4 {[%emt 0:00:00]} (18... Nb5 $11) 19. Bd2 $14 {[%emt 0:09:32]} Nxd5 {[%emt 0:00:00]} 20. e3 {[%emt 0:00:49]} (20. a3 $14 {should be considered.}) 20... Nb4 $11 {[%emt 0:00:00]} 21. Bxb4 {[%emt 0:03:11]} Rxb4 {[%emt 0:00:00] Black is weak on the light squares} 22. Rd3 {[%emt 0:04:59]} Qc7 {[%emt 0:00:00]} 23. Red1 {[%emt 0:01:21]} Rd8 {[%emt 0:00:00]} 24. Qd2 {[%emt 0:01:06][%cal Rd3d6]} Bf8 {[%emt 0:00:00]} 25. Bd5 {[%emt 0:00:55][%mdl 1024] White has compensation.} Qe7 {[%emt 0:00:00]} 26. Kh2 {[%emt 0:02:19]} Re8 {[%emt 0:00:00]} 27. Qe2 {[%emt 0:01:29]} Qf6 {[%emt 0:00:00]} (27... Bg7 $11) 28. Qc2 {[%emt 0:01:37]} (28. a3 $14 Rd4 29. Qb2 {[%mdl 64] Pin} (29. Bxb7 Rxd3 30. Rxd3 Qa1 $14)) 28... Qf5 {[%emt 0:00:00]} 29. R1d2 {[%emt 0:01:13]} (29. a3 $5 {[%cal Ra3b4]} Rb6 30. e4 Rxe4 31. Bxe4 Qxe4 32. Qd2 $14) 29... Bg7 {[%emt 0:00:58]} 30. Bg2 {[%emt 0:01:04]} Bf8 {[%emt 0:00:15]} 31. Bd5 {[%emt 0:00:07]} Re5 {[%emt 0:03:53]} (31... Bg7 $11 {was preferrable.}) 32. a3 $14 {[%emt 0:02:37]} Rb6 {[%emt 0:00:12][%cal Oe5d5]} 33. Qc4 {[%emt 0:00:17]} (33. e4 {seems wilder.} Rxe4 34. Bxe4 Qxe4 35. Re2) 33... Qf6 {[%emt 0:00:56]} (33... Re7 $11) 34. Kg2 $16 {[%emt 0:02:25]} Re7 {[%emt 0:00:17]} 35. Ra2 {[%emt 0:00:57]} ({White should try} 35. e4 $14) 35... Qf5 $11 {[%emt 0:01:09]} 36. Rad2 {[%emt 0:02:20]} Ra6 {[%emt 0:01:04]} 37. b4 {[%emt 0:03:39]} cxb4 {[%emt 0:01:51]} 38. Qxb4 {[%emt 0:00:06]} (38. axb4 $5 {[%cal Rd5b7]} Ra4 39. e4 $11) 38... Rc7 {[%emt 0:00:34]} 39. Qb5 {[%emt 0:04:02]} Qe5 {[%emt 0:02:19]} 40. e4 {[%emt 0:01:21]} Bh6 {[%emt 0:00:50] [#]} (40... Kg7 $11 {remains equal.}) 41. Ra2 {[%emt 0:00:36]} (41. f4 $6 Qe7 $11) (41. Rc2 $1 $16 {[%cal Rc2c7]} Rxc2 42. Qxb7) 41... Rb6 $36 {[%emt 0:03:28][%mdl 2048] Black has the initiative.} 42. Qa5 {[%emt 0:00:11]} Rc5 {[%emt 0:00:22]} ({Better is} 42... Rc1 $11 43. Rf3 Rbb1 44. Qd8+ (44. Qxa7 $2 {is a self mate.} Rg1+ 45. Kh2 Rh1+ 46. Kg2 Rbg1#) 44... Bf8 45. Rxf7 Rg1+ 46. Kh2 (46. Kf3 Qh5+ 47. Ke3 Rge1+ 48. Kf4 Qe5+ 49. Kg4 Qh5+ 50. Kf4 Qe5+ 51. Kg4 Qh5+ 52. Kf4 $11) 46... Rh1+ 47. Kg2 Rhg1+ 48. Kh2 (48. Kf3 Qh5+ 49. Kf4 Qe5+ 50. Kg4 Qh5+ 51. Kf4 Qe5+ 52. Kg4 Qh5+ 53. Kf4 $11) 48... Rh1+ 49. Kg2 Rhg1+) 43. Qxa7 $2 {[%emt 0:00:49][%mdl 8192] [#] This costs White the game.} (43. Qa4 $1 $14 {stays ahead.}) 43... Rxd5 $1 $19 {[%emt 0:00:43][%mdl 512] Black is clearly winning.} 44. exd5 {[%emt 0:00:09]} (44. Qxb6 Rxd3) 44... Rb1 {[%emt 0:00:04]} 45. Qa8+ {[%emt 0:02:17]} Bf8 {[%emt 0:00:37] ( -> ...Qe4+)} 46. Qa5 {[%emt 0:00:19]} Qe4+ {[%emt 0:00:12]} 47. Rf3 {[%emt 0:00:19]} Rb3 {[%emt 0:00:07] Weighted Error Value: White=0.56/Black=0.18 (very precise)} (47... Qc4 $142 48. Re3 Qxa2) 0-1

[Event "10th Cherry Blossom Classic 2023"]
[Site "Dulles"]
[Date "2023.05.27"]
[Round "3.9"]
[White "Morefield, Jason"]
[Black "Hilby, Craig"]
[Result "0-1"]
[ECO "C11"]
[WhiteElo "2167"]
[BlackElo "2401"]
[Annotator "TA"]
[PlyCount "56"]
[EventDate "2023.05.24"]
[EventType "swiss"]
[EventCountry "USA"]
[SourceTitle "playchess.com"]
[Source "ChessBase"]
[SourceQuality "1"]
[TimeControl "5400+30"]

{[%evp 16,56,15,0,0,0,0,0,0,0,0,-16,-10,-10,-15,-10,-20,-14,35,-10,0,0,119,132,113,-10,-10,-36,-25,-26,-17,-29,-10,-18,-12,-18,0,-80,-67,-67,-67,-697,-672]} 1. e4 {[%emt 0:00:06][%cal Be2e4,Be4e5][%mdl 32]} e6 {[%emt 0:03:19]} 2. d4 {[%emt 0:00:14]} d5 {[%emt 0:00:05]} 3. Nc3 {[%emt 0:01:09]} Nf6 {[%emt 0:00:16]} 4. e5 {[%emt 0:00:14]} Nfd7 {[%emt 0:00:10]} 5. f4 {[%emt 0:00:09]} c5 {[%emt 0:00:06]} 6. Nf3 {[%emt 0:00:10]} Nc6 {[%emt 0:00:16]} 7. Be3 {[%emt 0:00:13]} a6 {[%emt 0:00:12]} 8. Qd2 {[%emt 0:01:05]} b5 {[%emt 0:03:23][%cal Bb7b5,Bb5b4][%mdl 32]} 9. Bd3 {[%emt 0:01:57]} b4 {[%emt 0:01:20] C11: French: Classical System: 4 e5 and 4 Bg5 dxe4.} 10. Na4 {[%emt 0:00:40][%cal Rd4c5]} c4 {[%emt 0:00:38]} 11. Be2 {[%emt 0:00:08]} Nb6 {[%emt 0:00:09] The position is equal.} 12. Nc5 {[%emt 0:00:59]} Nd7 {[%emt 0:00:30]} 13. Nxd7 {[%emt 0:04:05]} Bxd7 {[%emt 0:00:14]} 14. O-O {[%emt 0:00:09]} a5 {[%emt 0:04:21]} 15. b3 {[%emt 0:02:34]} c3 {[%emt 0:03:46]} 16. Qe1 {[%emt 0:00:23] [#]} Na7 $146 {[%emt 0:08:51]} (16... a4 $11) ({Predecessor:} 16... a4 17. Bd3 Qb6 18. bxa4 Rxa4 19. g4 Be7 20. f5 Bc8 21. Qf2 Ba6 22. Ne1 Nd8 {½-½ Capezzali,R (1884)-Webster,R EU-ch SC-OR/206 email 2017}) 17. Ng5 {[%emt 0:06:51]} Be7 {[%emt 0:07:23]} 18. Qh4 {[%emt 0:09:16]} Bb5 {[%emt 0:17:24] [#]} (18... Nb5 $11) 19. Bxb5+ $1 $16 {[%emt 0:05:41]} ({Weaker is} 19. Qh5 g6 20. Bxb5+ Nxb5 $15) 19... Nxb5 {[%emt 0:00:03] [#]} 20. Qh5 {[%emt 0:08:24]} ({White must play} 20. f5 $1 $16 {[%cal Rf5f6]}) 20... g6 $1 $11 {[%emt 0:02:15]} 21. Qe2 {[%emt 0:07:28]} (21. Qh6 $5 {[%cal Rh6g7]}) 21... Qb6 {[%emt 0:03:15]} 22. Rad1 {[%emt 0:02:17]} a4 {[%emt 0:05:01]} 23. Nf3 {[%emt 0:01:30]} Ra5 {[%emt 0:12:33]} 24. g4 {[%emt 0:03:40]} h5 {[%emt 0:03:22]} 25. h3 $1 {[%emt 0:00:06]} Qa6 {[%emt 0:02:01]} 26. Kg2 {[%emt 0:01:18]} (26. Ne1 $11) 26... axb3 {[%emt 0:02:08]} 27. axb3 {[%emt 0:00:08]} Na3 {[%emt 0:00:21] Black is more active.} 28. Rd3 $2 {[%emt 0:01:15][%mdl 8192] [#]} (28. Qxa6 $15 Rxa6 29. Rc1) 28... Nxc2 $1 {[%emt 0:01:03][%mdl 512] Weighted Error Value: White=0.40/Black=0.15 (very precise)} 0-1

[Event "10th Cherry Blossom Classic 2023"]
[Site "Dulles"]
[Date "2023.05.27"]
[Round "3.10"]
[White "Ouellet, Maili-Jade"]
[Black "Stearman, Josiah"]
[Result "1/2-1/2"]
[ECO "D27"]
[WhiteElo "2246"]
[BlackElo "2385"]
[Annotator "TA"]
[PlyCount "123"]
[EventDate "2023.05.24"]
[EventType "swiss"]
[EventCountry "USA"]
[SourceTitle "playchess.com"]
[Source "ChessBase"]
[SourceQuality "1"]
[TimeControl "5400+30"]

{[%evp 15,123,25,22,10,23,24,27,7,24,12,22,0,2,2,59,61,68,62,171,158,174,152,166,170,255,106,95,91,123,123,123,116,115,115,118,126,125,119,129,118,257,268,267,263,300,294,290,276,274,283,277,270,428,428,421,392,481,504,497,476,1166,956,1333,962,890,888,1457,1434,1652,1307,1764,1751,1628,1443,1804,1551,29979,29980,12834,1708,6079,3915,12809,12492,1956,1709,1614,1534,5173,5065,1985,1989,1753,810,1545,1429,1380,0,0,0,0,0,0,0,0,0,0,0,0,0]} 1. d4 {[%emt 0:00:02]} d5 {[%emt 0:07:18]} 2. c4 {[%emt 0:00:08]} dxc4 {[%emt 0:00:05]} 3. Nf3 {[%emt 0:00:07]} Nf6 {[%emt 0:00:07]} 4. e3 {[%emt 0:00:03]} e6 {[%emt 0:00:06]} 5. Bxc4 {[%emt 0:00:10]} a6 {[%emt 0:00:08]} 6. O-O {[%emt 0:00:38]} c5 {[%emt 0:00:04]} 7. b3 {[%emt 0:00:11]} Nbd7 {[%emt 0:00:49]} 8. Bb2 {[%emt 0:00:32]} Be7 {[%emt 0:00:17]} 9. Nbd2 {[%emt 0:01:14] 9.Nbd2 is better than 9.dxc5. D27: Queen's Gambit Accepted: Classical main line: 7 e4!? and 7 a4.} b6 {[%emt 0:02:46]} 10. Qe2 {[%emt 0:09:22]} Bb7 {[%emt 0:00:42]} 11. Rfd1 {[%emt 0:00:51] White has an edge.} O-O {[%emt 0:11:56]} 12. a4 {[%emt 0:03:15]} Qb8 {[%emt 0:09:42]} 13. h3 {[%emt 0:05:15] [#]} cxd4 $146 {[%emt 0:03:22]} ({Predecessor:} 13... Rd8 14. Rac1 Qa7 15. dxc5 Nxc5 16. Ne5 Rac8 17. Ndf3 h6 18. Nxf7 Bxf3 19. Nxh6+ gxh6 20. Qxf3 {1-0 Nihal,S (2670)-Nakamura,H (2768) Speed Chess Chess.com INT blitz 2022 (3.37)}) 14. Bxd4 {[%emt 0:06:05]} e5 {[%emt 0:06:39]} ({Black should play} 14... Rd8 $11) 15. Bb2 $14 {[%emt 0:04:08]} e4 {[%emt 0:00:33]} 16. Nd4 {[%emt 0:03:04]} g6 {[%emt 0:00:43] Wards off Nf5} ({Better is} 16... Rc8 $14) 17. Ne6 $1 $18 {[%emt 0:17:15]} fxe6 {[%emt 0:13:21]} 18. Bxe6+ {[%emt 0:00:05]} Rf7 {[%emt 0:00:05][%cal Ob8e8]} 19. Nc4 $1 {[%emt 0:02:57]} (19. Bxf7+ Kxf7 20. Nxe4 Bxe4 $15) 19... b5 {[%emt 0:07:51]} (19... Nc5 $142 20. Bxf7+ Kxf7) 20. axb5 {[%emt 0:07:51]} (20. Bxf6 $1 $18 {is the precise move to win.} Nxf6 21. Nb6) 20... axb5 $16 {[%emt 0:00:20]} 21. Na5 {[%emt 0:08:26][%cal Bc4a5,Ba5b7,Bb7d6,Bd6e4][%mdl 32] Really sharp! White is much more active.} Nc5 {[%emt 0:03:11][%cal Bd7c5,Bc5d3,Bd3b2][%mdl 32]} 22. Bxf7+ {[%emt 0:02:07]} Kxf7 {[%emt 0:00:03]} 23. Qxb5 {[%emt 0:03:33]} Nd3 {[%emt 0:09:09]} 24. Nxb7 {[%emt 0:09:07]} ({Not} 24. Rxd3 exd3 25. Qxd3 (25. Qxb7 $2 {loses.} Qxb7 26. Nxb7 Rxa1+ 27. Bxa1 d2 $19) (25. Nxb7 Rxa1+ 26. Bxa1 d2 $17) 25... Be4 $17) 24... Nxb2 {[%emt 0:00:09] A dynamic duo of knights.} 25. Rxa8 {[%emt 0:01:19]} Qxa8 {[%emt 0:00:04]} 26. Rd4 {[%emt 0:01:25]} Nd3 {[%emt 0:04:15] [#] Inhibits Nc5.} 27. Nd6+ $1 {[%emt 0:01:15]} ({Stronger than} 27. Qc4+ Kf8 28. Qc7 Ne8 $15) 27... Kg7 {[%emt 0:13:34] [#]} (27... Bxd6 $16 28. Rxd6 Qa1+ 29. Kh2 Ke7) 28. Nxe4 $1 $18 {[%emt 0:01:21][%mdl 576] Remove Defender} Nxe4 {[%emt 0:00:26]} 29. Qxd3 {[%emt 0:00:39]} Nf6 {[%emt 0:02:53]} 30. b4 {[%emt 0:00:46][%cal Bb3b4,Bb4b5][%mdl 32]} Qa1+ {[%emt 0:00:12]} 31. Qf1 {[%emt 0:01:12]} Qb2 {[%emt 0:00:02]} 32. b5 {[%emt 0:00:50] Qc4 is the strong threat.} Bc5 {[%emt 0:00:34]} 33. Ra4 {[%emt 0:01:54]} Kh6 {[%emt 0:00:51]} (33... Qd2 $142 34. Qa1 Kf7) 34. Qc4 {[%emt 0:01:24]} Qb1+ {[%emt 0:01:47]} 35. Kh2 {[%emt 0:00:09]} Bd6+ {[%emt 0:00:02] [#]} 36. g3 $1 {[%emt 0:00:37]} Nh5 {[%emt 0:00:15]} 37. Kg2 {[%emt 0:03:06]} Bxg3 {[%emt 0:00:23]} (37... Nxg3 $142 38. fxg3 Qb2+ 39. Kg1 Bxg3) 38. fxg3 {[%emt 0:00:52][%mdl 4096] Endgame Threatens to win with g4. KQR-KQN} Qe1 {[%emt 0:00:03]} 39. Kf3 {[%emt 0:01:42]} Qxg3+ {[%emt 0:01:36]} 40. Ke2 {[%emt 0:00:09]} Qxh3 {[%emt 0:00:02]} 41. b6 {[%emt 0:01:32]} Ng3+ {[%emt 0:00:34]} 42. Kd3 {[%emt 0:00:55]} Qf5+ {[%emt 0:00:32]} 43. Kd2 {[%emt 0:03:06]} Qf2+ {[%emt 0:00:37]} 44. Kd1 {[%emt 0:00:33] Threatening mate with Qh4+.} Qg1+ {[%emt 0:01:53]} 45. Kc2 {[%emt 0:00:05] Qf4+ would kill now.} Nf5 {[%emt 0:01:50]} 46. Qf4+ {[%emt 0:00:35]} Kh5 {[%emt 0:00:21]} 47. Ra5 {[%emt 0:00:32]} (47. Qf3+ $142 Kh6 48. b7 Nxe3+ 49. Kd2) 47... Qg2+ {[%emt 0:00:17]} 48. Kb3 {[%emt 0:00:17] Rxf5+ would be deadly.} Qc6 {[%emt 0:00:11]} 49. Qc7 {[%emt 0:01:28]} Qe6+ {[%emt 0:00:03]} 50. Kb4 {[%emt 0:00:21] Black must now prevent b7.} Qe4+ {[%emt 0:00:11]} 51. Kb5 {[%emt 0:00:24] aiming for b7.} Qd3+ {[%emt 0:00:20]} 52. Qc4 {[%emt 0:00:42]} Qd8 {[%emt 0:01:19]} 53. Qc5 {[%emt 0:00:46]} Kg4 {[%emt 0:00:55]} 54. Ra4+ {[%emt 0:00:16]} (54. b7 $142 h6 55. Qe5 Nd6+ 56. Kc6 Qxa5 57. Qxa5 Nxb7 58. Kxb7 Kf3 59. Qe5) 54... Kh3 {[%emt 0:00:11]} 55. Rb4 {[%emt 0:00:45]} Qe8+ {[%emt 0:00:48]} 56. Qc6 $2 {[%emt 0:00:20]} (56. Kc4 $18 Qe4+ 57. Kc3) 56... Nd6+ $11 {[%emt 0:00:17] The position is equal.} 57. Kc5 {[%emt 0:00:05] White wants to mate with Qf3+.} Qe5+ {[%emt 0:00:06]} 58. Qd5 {[%emt 0:00:09]} Nb7+ {[%emt 0:00:06]} 59. Kc4 {[%emt 0:00:46]} (59. Kc6 $5 Na5+ $8 60. Kc5 Nb7+ 61. Kc6 Na5+ 62. Kc5 Nb7+ $11) 59... Nd6+ {[%emt 0:00:29]} 60. Kc5 {[%emt 0:00:20]} Nb7+ {[%emt 0:00:04]} 61. Kc6 {[%emt 0:00:21]} Na5+ {[%emt 0:00:03]} 62. Kc5 {[%emt 0:01:08] Blacks defense is rewarded with a draw. An interesting game.   Weighted Error Value: White=0.18 (very precise) /Black=0.51} 1/2-1/2